bitfinex-derivatives/quotes_BTCF0:USTF0_20250330
["timestamp","ask_amount","ask_price","bid_price","bid_amount"]
[1743342885299,0.14329989,82804.0,82803.0,0.46894102]
[1743342885807,0.37289989,82804.0,82803.0,0.46894102]
[1743342886610,0.36316203,82804.0,82803.0,0.46894102]
[1743342888408,0.36312982,82804.0,82803.0,0.46894102]
[1743342898711,0.36312982,82804.0,82803.0,0.69534102]
[1743342902921,0.36312982,82804.0,82803.0,0.00194122]
[1743342903222,0.1208155,82794.0,82787.0,0.3608]
[1743342903515,0.64454442,82794.0,82793.0,0.29101908]
[1743342904018,0.65891032,82794.0,82793.0,0.29101908]
[1743342904517,0.65891032,82794.0,82793.0,0.29301908]
[1743342904823,0.64654442,82794.0,82793.0,0.00384]
[1743342905016,0.64654442,82794.0,82793.0,0.002]
[1743342905315,0.1208169,82793.0,82792.0,8e-05]
[1743342905512,0.60964582,82793.0,82792.0,8e-05]
[1743342906718,0.75964582,82793.0,82786.0,0.01395027]
[1743342906917,0.75964582,82793.0,82785.0,0.00194122]
[1743342906918,0.1208271,82786.0,82785.0,0.00194122]
[1743342907120,0.28255602,82786.0,82785.0,0.00378122]
[1743342907325,0.1208286,82785.0,82784.0,0.28925908]
[1743342907616,0.13375753,82785.0,82784.0,0.29037908]
[1743342907821,0.75185753,82785.0,82784.0,0.29037908]
[1743342908218,0.76564269,82785.0,82784.0,0.29037908]
[1743342908423,0.76564269,82785.0,82784.0,0.0012]
[1743342908717,0.1208315,82783.0,82782.0,8e-05]
[1743342909018,1.52244042,82783.0,82782.0,8e-05]
[1743342909326,1.52244042,82783.0,82779.0,0.00048321]
[1743342909327,0.1208359,82780.0,82779.0,0.00048321]
[1743342909624,0.13320482,82780.0,82779.0,0.00048321]
[1743342910720,0.14249758,82780.0,82779.0,0.00048321]
[1743342911024,0.14249758,82780.0,82757.0,0.060434]
[1743342911025,0.120868,82758.0,82757.0,0.060434]
[1743342911213,0.270988,82758.0,82757.0,0.3022447]
[1743342911412,0.271628,82758.0,82757.0,0.3022447]
[1743342912112,0.271628,82758.0,82757.0,1.8022447]
[1743342912418,0.270988,82758.0,82757.0,2.0265447]
[1743342913013,0.271988,82758.0,82757.0,2.0265447]
[1743342913712,0.273988,82758.0,82757.0,2.0265447]
[1743342919624,0.003,82758.0,82757.0,2.0265447]
[1743342922231,0.003,82758.0,82757.0,2.3873447]
[1743342929238,0.15110122,82766.0,82765.0,0.1208578]
[1743342929433,0.15230123,82766.0,82765.0,0.1220578]
[1743342929831,0.15230123,82766.0,82765.0,0.8125578]
[1743342930031,0.15230123,82766.0,82765.0,2.3125578]
[1743342930538,0.15630123,82766.0,82765.0,2.3125578]
[1743342930723,0.15510122,82766.0,82765.0,2.3125578]
[1743342934640,0.00929276,82780.0,82765.0,2.3125578]
[1743342934641,0.00929276,82780.0,82779.0,0.1208374]
[1743342934830,0.15208001,82780.0,82779.0,0.1220374]
[1743342935028,0.17275734,82780.0,82779.0,0.1220374]
[1743342935234,0.01294562,82780.0,82779.0,0.1220374]
[1743342935539,0.2326,82787.0,82779.0,0.1220374]
[1743342935540,0.4495,82793.0,82782.0,0.120833]
[1743342935727,1.13560948,82783.0,82782.0,0.483313]
[1743342936041,1.02808,82783.0,82782.0,0.483313]
[1743342936537,0.15084,82783.0,82782.0,0.483313]
[1743342937733,0.15584,82783.0,82782.0,0.483313]
[1743342937936,0.005,82783.0,82782.0,1.983313]
[1743342938636,0.17983802,82784.0,82783.0,0.1208315]
[1743342938842,0.11940954,82784.0,82783.0,0.1224315]
[1743342939033,0.06042848,82784.0,82783.0,0.5916315]
[1743342939337,0.00058122,82788.0,82787.0,0.1208257]
[1743342939540,0.00058122,82788.0,82787.0,0.1224257]
[1743342940243,0.00058122,82788.0,82787.0,0.5916257]
[1743342941129,0.01994122,82792.0,82791.0,0.1208198]
[1743342941334,0.01994122,82792.0,82791.0,0.4832198]
[1743342942034,0.01994122,82792.0,82791.0,0.9303198]
[1743342943830,0.01994122,82792.0,82791.0,0.5695198]
[1743342944034,0.01994122,82792.0,82791.0,0.9303198]
[1743342944736,0.01994122,82792.0,82791.0,0.5695198]
[1743342944933,0.01994122,82792.0,82791.0,0.9303198]
[1743342954847,0.14075962,82792.0,82791.0,0.0016]
[1743342955054,0.1208271,82787.0,82785.0,0.1208276]
[1743342955259,0.1208271,82787.0,82786.0,0.1208253]
[1743342955456,0.3591271,82786.0,82785.0,0.1208284]
[1743342955754,0.3591271,82786.0,82785.0,0.1224684]
[1743342955954,0.3591271,82786.0,82783.0,0.0604954]
[1743342955955,0.1208301,82784.0,82783.0,8e-05]
[1743342956146,0.1214701,82784.0,82783.0,0.00112]
[1743342956345,0.1208359,82780.0,82779.0,0.1209168]
[1743342956646,0.1208359,82780.0,82779.0,0.1220768]
[1743342956647,0.2723959,82780.0,82779.0,0.1220768]
[1743342957251,0.2723959,82780.0,82779.0,0.00124]
[1743342957556,0.2723959,82780.0,82779.0,0.00224]
[1743342958345,0.28388466,82780.0,82779.0,0.1230774]
[1743342959543,0.28388466,82780.0,82779.0,0.1220774]
[1743342959741,0.28388466,82780.0,82779.0,0.1209174]
[1743342960242,0.28488466,82780.0,82779.0,0.1209174]
[1743342960456,0.15252,82780.0,82779.0,0.1220374]
[1743342960756,0.2733559,82780.0,82779.0,0.1220374]
[1743342960957,0.2723559,82780.0,82779.0,0.1220374]
[1743342961252,0.2743559,82780.0,82779.0,1.8694374]
[1743342961550,0.28576733,82780.0,82779.0,0.0012]
[1743342961762,0.28576733,82780.0,82779.0,8e-05]
[1743342962254,0.28576733,82780.0,82779.0,0.00108]
[1743342962454,0.1208432,82775.0,82774.0,0.00018122]
[1743342962751,0.1215632,82775.0,82774.0,0.12102592]
[1743342963055,0.1215632,82775.0,82774.0,0.12214592]
[1743342963255,0.1220032,82775.0,82774.0,0.12214592]
[1743342963450,0.1220032,82775.0,82774.0,0.00130122]
[1743342963850,0.1220032,82775.0,82774.0,0.12214592]
[1743342964051,0.1230032,82775.0,82774.0,0.12214592]
[1743342964252,0.1230032,82775.0,82774.0,0.00130122]
[1743342964861,0.1220032,82775.0,82774.0,0.00130122]
[1743342965058,0.4838032,82775.0,82774.0,0.00130122]
[1743342965254,0.4838032,82775.0,82774.0,0.12214592]
[1743342965255,0.49523167,82775.0,82774.0,0.12214592]
[1743342967156,0.49523413,82775.0,82774.0,0.12214592]
[1743342968262,0.4838032,82775.0,82774.0,0.12214592]
[1743342968464,0.4838032,82775.0,82774.0,0.34794592]
[1743342969362,0.4828032,82775.0,82774.0,0.34794592]
[1743342969664,0.4838032,82775.0,82774.0,0.34794592]
[1743342970664,0.7325032,82775.0,82774.0,0.34794592]
[1743342972364,0.9807032,82775.0,82774.0,0.34794592]
[1743342974269,0.9807032,82775.0,82774.0,0.57194592]
[1743342976656,0.99214886,82775.0,82774.0,0.57194592]
[1743342976861,0.99214839,82775.0,82774.0,0.00130122]
[1743342977060,0.99214839,82775.0,82774.0,0.00018122]
[1743342977366,0.1208534,82768.0,82767.0,8e-05]
[1743342977565,0.64397859,82768.0,82767.0,0.01499641]
[1743342977761,0.64397859,82768.0,82767.0,0.01503641]
[1743342977961,0.64397859,82768.0,82767.0,0.01391641]
[1743342978169,0.1208593,82764.0,82763.0,0.2341833]
[1743342978468,0.1334245,82764.0,82763.0,0.2353033]
[1743342978870,0.13337966,82764.0,82763.0,0.2353033]
[1743342979062,0.60477966,82764.0,82763.0,0.2353033]
[1743342979364,0.60577966,82764.0,82763.0,0.2353033]
[1743342979572,0.60577966,82764.0,82763.0,0.36964595]
[1743342979772,0.27313931,82764.0,82763.0,0.36964595]
[1743342979962,0.27313931,82764.0,82763.0,0.83184595]
[1743342980162,0.3608,82768.0,82763.0,0.83184595]
[1743342980163,0.120855,82767.0,82766.0,0.1208563]
[1743342980359,0.1516,82767.0,82766.0,0.1222963]
[1743342980667,0.2724549,82767.0,82766.0,1.6222963]
[1743342981463,0.2734549,82767.0,82766.0,1.6222963]
[1743342982667,0.1232949,82767.0,82766.0,1.6222963]
[1743342982864,0.2734149,82767.0,82766.0,1.6222963]
[1743342984267,0.28485204,82767.0,82766.0,1.6222963]
[1743342985268,0.28486161,82767.0,82766.0,1.6222963]
[1743342985777,0.16400671,82767.0,82766.0,1.6222963]
[1743342986166,0.28486161,82767.0,82766.0,1.6222963]
[1743342989278,0.28486161,82767.0,82766.0,0.00144]
[1743342989478,0.99016161,82767.0,82766.0,0.1222963]
[1743342989680,0.01388671,82767.0,82766.0,0.1222963]
[1743342989992,0.00244,82767.0,82766.0,1.9830963]
[1743342990168,0.001,82767.0,82766.0,1.9830963]
[1743342990670,0.001,82767.0,82766.0,2.4592963]
[1743342991076,0.10775539,82771.0,82770.0,0.1208505]
[1743342991277,0.10919539,82771.0,82770.0,0.1222905]
[1743342991672,0.10775539,82771.0,82770.0,0.1222905]
[1743342991881,0.10775539,82771.0,82770.0,0.5984905]
[1743342993981,0.14996,82779.0,82778.0,0.1208388]
[1743342993982,0.2707983,82779.0,82778.0,0.1208388]
[1743342994184,0.28378823,82779.0,82778.0,0.1208388]
[1743342994582,0.28378823,82779.0,82778.0,0.1222788]
[1743342994783,0.28378823,82779.0,82778.0,0.5959788]
[1743342995483,0.28374823,82779.0,82778.0,0.5959788]
[1743342995679,0.13382823,82779.0,82778.0,0.5959788]
[1743342995870,0.28374823,82779.0,82778.0,0.5959788]
[1743342996271,0.28374823,82779.0,82778.0,0.23374]
[1743342996481,0.28374823,82779.0,82778.0,0.2323]
[1743342996676,0.28374823,82779.0,82778.0,0.00156]
[1743342996877,0.1208432,82775.0,82774.0,0.2307]
[1743342997085,0.13375313,82775.0,82774.0,0.23214]
[1743342997287,0.13375313,82775.0,82774.0,0.00144]
[1743342998186,0.13375313,82775.0,82774.0,0.23214]
[1743342998887,0.13375313,82775.0,82774.0,0.3529847]
[1743342999091,0.01290993,82775.0,82774.0,0.5987847]
[1743342999389,0.16274993,82775.0,82774.0,0.8437847]
[1743342999684,0.28359313,82775.0,82774.0,0.8437847]
[1743342999891,0.16274993,82775.0,82774.0,0.8437847]
[1743343000086,0.15128,82775.0,82774.0,0.8437847]
[1743343000289,0.00018122,82783.0,82779.0,0.0604181]
[1743343000483,0.00162122,82783.0,82782.0,0.120833]
[1743343000683,0.00162122,82783.0,82782.0,0.122273]
[1743343000882,0.16293335,82783.0,82782.0,0.600473]
[1743343002281,0.28376485,82783.0,82782.0,0.600473]
[1743343002988,0.52696485,82783.0,82782.0,0.600473]
[1743343003882,0.52696485,82783.0,82782.0,0.47964]
[1743343004189,0.52696485,82783.0,82782.0,0.00144]
[1743343004391,0.52696485,82783.0,82779.0,0.1208372]
[1743343004392,0.1208359,82780.0,82779.0,0.1208372]
[1743343004586,0.13374803,82780.0,82779.0,0.1222772]
[1743343004888,0.13374803,82780.0,82779.0,0.00144]
[1743343005284,0.72684803,82780.0,82779.0,0.1222774]
[1743343008193,0.7153759,82780.0,82779.0,0.1222774]
[1743343008492,0.72689428,82780.0,82779.0,0.1222774]
[1743343009293,0.96889428,82780.0,82779.0,0.1222774]
[1743343009585,0.96889428,82780.0,82779.0,0.3694774]
[1743343010493,0.60809428,82780.0,82779.0,0.3694774]
[1743343015194,0.01295838,82780.0,82779.0,0.3694774]
[1743343015692,0.10776763,82781.0,82780.0,0.1208359]
[1743343015896,0.10776763,82781.0,82780.0,0.1223159]
[1743343016193,0.00018122,82783.0,82780.0,0.1223159]
[1743343016194,0.00018122,82783.0,82782.0,0.120833]
[1743343016499,0.00018122,82783.0,82782.0,0.122353]
[1743343016890,0.00018122,82783.0,82782.0,0.596253]
[1743343023301,0.00018122,82783.0,82782.0,2.096253]
[1743343031107,0.12101272,82783.0,82782.0,0.23552]
[1743343031306,0.12257273,82783.0,82782.0,0.23552]
[1743343031510,0.12101272,82783.0,82782.0,0.356353]
[1743343031810,0.12253272,82783.0,82782.0,0.356353]
[1743343032013,0.60003272,82783.0,82782.0,0.356353]
[1743343036403,0.61157144,82783.0,82782.0,0.356353]
[1743343039003,0.61160736,82783.0,82782.0,0.356353]
[1743343040099,0.61159113,82783.0,82782.0,0.356353]
[1743343040509,0.61159113,82783.0,82782.0,0.122353]
[1743343040814,0.61159113,82783.0,82782.0,0.120833]
[1743343041120,0.61159113,82783.0,82782.0,0.122313]
[1743343042007,0.61159113,82783.0,82782.0,0.363813]
[1743343046407,0.61159113,82783.0,82782.0,0.122313]
[1743343046607,0.61159113,82783.0,82782.0,0.120833]
[1743343046608,0.61157407,82783.0,82782.0,0.120833]
[1743343047119,0.61157407,82783.0,82781.0,8e-05]
[1743343047120,0.120833,82782.0,82781.0,8e-05]
[1743343047415,0.13301435,82782.0,82781.0,0.0016]
[1743343047715,0.1208388,82778.0,82777.0,0.1208389]
[1743343047919,0.64370015,82778.0,82777.0,0.1223189]
[1743343048310,0.64370015,82778.0,82777.0,0.00148]
[1743343048618,0.1208432,82775.0,82774.0,0.21688853]
[1743343048920,0.13310455,82775.0,82774.0,0.21832853]
[1743343049116,0.49390455,82775.0,82774.0,0.21832853]
[1743343049414,0.1208447,82774.0,82770.0,0.28873131]
[1743343049618,0.01154135,82773.0,82770.0,0.28977131]
[1743343049815,0.50424135,82773.0,82770.0,0.28977131]
[1743343050124,0.01054135,82772.0,82770.0,0.28977131]
[1743343050315,0.120849,82771.0,82770.0,0.28977131]
[1743343050509,0.597229,82771.0,82770.0,0.29177131]
[1743343051107,0.596229,82771.0,82770.0,0.29177131]
[1743343051515,0.596229,82771.0,82770.0,0.00304]
[1743343051714,0.596229,82771.0,82770.0,0.002]
[1743343052622,0.745229,82771.0,82770.0,0.244]
[1743343052918,0.745229,82771.0,82770.0,0.00308]
[1743343053120,0.745229,82771.0,82770.0,0.002]
[1743343053322,0.1208505,82770.0,82769.0,8e-05]
[1743343053515,0.12197051,82770.0,82769.0,0.2402]
[1743343053721,0.60637051,82770.0,82769.0,0.2402]
[1743343054714,0.60837051,82770.0,82769.0,0.2402]
[1743343054922,0.61137051,82770.0,82769.0,0.0012]
[1743343055125,0.1208593,82764.0,82763.0,0.0004833]
[1743343055426,0.12197931,82764.0,82763.0,0.0014833]
[1743343055626,0.12197931,82764.0,82763.0,0.0004833]
[1743343055825,0.60637931,82764.0,82763.0,0.0004833]
[1743343056419,0.60637931,82764.0,82757.0,8e-05]
[1743343056420,0.0604331,82760.0,82757.0,8e-05]
[1743343056620,0.1208739,82754.0,82747.0,0.0004834]
[1743343056821,0.4823139,82754.0,82747.0,0.0004834]
[1743343057223,0.1208826,82748.0,82747.0,0.0004834]
[1743343057539,0.2708426,82748.0,82747.0,0.0016034]
[1743343057743,0.28032896,82748.0,82747.0,0.0015234]
[1743343057936,0.28032896,82748.0,82747.0,0.0004834]
[1743343058135,0.75952896,82748.0,82747.0,0.0004834]
[1743343058327,0.75952896,82748.0,82747.0,0.0014834]
[1743343059432,0.1208943,82740.0,82739.0,0.1208948]
[1743343059635,0.13102066,82740.0,82739.0,0.1219348]
[1743343060039,0.14091223,82740.0,82739.0,0.3511348]
[1743343060343,0.62091223,82740.0,82739.0,0.3511348]
[1743343061640,0.62091223,82740.0,82739.0,0.3531348]
[1743343061943,0.28979223,82740.0,82739.0,0.3531348]
[1743343062242,0.28979223,82740.0,82739.0,1.73224]
[1743343062430,0.28979223,82740.0,82739.0,0.23224]
[1743343062633,0.53639223,82740.0,82739.0,0.23224]
[1743343062835,0.77069223,82740.0,82739.0,0.23224]
[1743343063829,0.77072083,82740.0,82739.0,0.23224]
[1743343064333,1.13152083,82740.0,82739.0,0.23224]
[1743343064546,1.13152083,82740.0,82739.0,0.2312]
[1743343064747,1.13152083,82740.0,82739.0,0.00308]
[1743343064938,1.13152083,82740.0,82739.0,0.002]
[1743343065139,1.13152083,82740.0,82739.0,0.003]
[1743343066437,1.13152083,82740.0,82725.0,8e-05]
[1743343066438,0.0604489,82738.0,82725.0,8e-05]
[1743343066647,0.0604489,82738.0,82707.0,0.3608]
[1743343066648,0.1209162,82725.0,82724.0,0.2431]
[1743343066850,0.29595969,82725.0,82724.0,0.24386]
[1743343067047,1.03301908,82725.0,82724.0,0.2431]
[1743343067252,0.1209221,82721.0,82720.0,8e-05]
[1743343067549,0.16378498,82721.0,82720.0,8e-05]
[1743343067753,0.1209294,82716.0,82715.0,0.00048359]
[1743343067951,0.50785289,82716.0,82715.0,0.00116359]
[1743343068642,0.53424777,82716.0,82715.0,0.00116359]
[1743343069846,0.68304777,82716.0,82715.0,0.00116359]
[1743343070047,0.68604777,82716.0,82715.0,0.00116359]
[1743343070654,0.68604777,82716.0,82715.0,0.00048359]
[1743343070655,0.68804777,82716.0,82715.0,0.00048359]
[1743343070851,0.68804777,82716.0,82715.0,0.00116359]
[1743343071648,0.41831837,82716.0,82715.0,0.12209449]
[1743343071950,0.19036124,82716.0,82715.0,0.12209449]
[1743343072155,0.04088124,82716.0,82715.0,1.62209449]
[1743343072343,0.18968124,82716.0,82715.0,1.62209449]
[1743343072542,0.00018122,82740.0,82730.0,0.1209089]
[1743343072852,0.00018122,82740.0,82730.0,0.1215889]
[1743343072853,0.37776746,82731.0,82730.0,0.1215889]
[1743343073254,0.22896746,82731.0,82730.0,0.1215889]
[1743343073454,0.37772746,82731.0,82730.0,0.1215889]
[1743343073954,0.11305996,82731.0,82730.0,0.13484023]
[1743343074155,0.26681996,82731.0,82730.0,0.13484023]
[1743343074750,0.38772746,82731.0,82730.0,0.1215889]
[1743343075055,0.2803475,82731.0,82730.0,0.1215889]
[1743343075444,0.2803475,82731.0,82730.0,0.00068]
[1743343076043,0.53341752,82731.0,82730.0,0.00068]
[1743343077541,0.53345029,82731.0,82730.0,0.00068]
[1743343079550,0.53346551,82731.0,82730.0,0.00068]
[1743343080359,0.1209119,82728.0,82727.0,0.2304]
[1743343080546,0.49400991,82728.0,82727.0,0.23116]
[1743343081156,0.5073832,82728.0,82727.0,0.23116]
[1743343081353,0.5073832,82728.0,82727.0,0.00076]
[1743343081558,0.1209177,82724.0,82723.0,0.2391]
[1743343081753,0.13326106,82724.0,82723.0,0.23978]
[1743343082060,0.28190106,82724.0,82723.0,0.3606992]
[1743343082244,0.13326106,82724.0,82723.0,0.6087992]
[1743343082448,0.2702377,82724.0,82723.0,0.6087992]
[1743343083155,0.28185197,82724.0,82723.0,0.6087992]
[1743343083352,0.28585197,82724.0,82723.0,0.6087992]
[1743343083657,0.28785197,82724.0,82723.0,0.6087992]
[1743343084250,0.13921197,82724.0,82723.0,0.6087992]
[1743343084560,0.29723248,82724.0,82723.0,0.6087992]
[1743343086360,0.30699941,82724.0,82723.0,0.6087992]
[1743343086748,0.30711378,82724.0,82723.0,0.6087992]
[1743343088059,0.323221,82724.0,82723.0,0.6087992]
[1743343088555,0.2022233,82724.0,82723.0,0.6087992]
[1743343088745,0.18611608,82724.0,82723.0,0.6087992]
[1743343088953,0.03755608,82724.0,82723.0,0.6087992]
[1743343089151,0.18611608,82724.0,82723.0,0.6087992]
[1743343089547,0.30703378,82724.0,82723.0,0.6087992]
[1743343090061,0.32335443,82724.0,82723.0,0.23978]
[1743343090966,0.80375443,82724.0,82723.0,0.23978]
[1743343091162,0.80375443,82724.0,82723.0,0.3606992]
[1743343092063,0.80375443,82724.0,82723.0,0.23978]
[1743343092450,0.80375443,82724.0,82723.0,0.21256307]
[1743343092654,0.80375443,82724.0,82723.0,0.33348227]
[1743343092858,0.78743378,82724.0,82723.0,0.33348227]
[1743343093059,0.30703378,82724.0,82723.0,0.33348227]
[1743343093964,0.30695378,82724.0,82723.0,0.33348227]
[1743343094756,0.30728521,82724.0,82723.0,0.33348227]
[1743343096164,0.30660521,82724.0,82723.0,0.33348227]
[1743343096362,0.30728521,82724.0,82723.0,0.58588227]
[1743343096557,0.29553037,82724.0,82723.0,0.58588227]
[1743343096767,0.30729209,82724.0,82723.0,0.58588227]
[1743343098664,0.30724862,82724.0,82723.0,0.58588227]
[1743343098966,0.29756288,82724.0,82723.0,0.58588227]
[1743343099367,0.29756283,82724.0,82723.0,0.58588227]
[1743343099663,0.2877959,82724.0,82723.0,0.58588227]
[1743343099866,0.2973536,82724.0,82723.0,0.58588227]
[1743343100457,0.3072177,82724.0,82723.0,0.58588227]
[1743343100765,0.30722044,82724.0,82723.0,0.58588227]
[1743343101156,0.15874044,82724.0,82723.0,0.58588227]
[1743343101868,0.63384044,82724.0,82723.0,0.58588227]
[1743343102561,0.15874044,82724.0,82723.0,0.58588227]
[1743343102862,0.03795032,82724.0,82723.0,0.94668227]
[1743343103061,0.03727032,82724.0,82723.0,0.94668227]
[1743343103255,0.03803032,82724.0,82723.0,0.94668227]
[1743343104062,0.15894802,82724.0,82723.0,0.94668227]
[1743343105767,0.03803032,82724.0,82723.0,0.94668227]
[1743343107173,0.02542454,82724.0,82723.0,0.94668227]
[1743343107562,0.02606454,82724.0,82723.0,2.44668227]
[1743343107768,0.02542454,82724.0,82723.0,2.44668227]
[1743343108268,0.01942454,82724.0,82723.0,2.44668227]
[1743343108566,0.10783268,82727.0,82726.0,0.1209148]
[1743343108767,0.10783268,82727.0,82726.0,0.1216348]
[1743343109164,0.10783268,82727.0,82726.0,1.6216348]
[1743343109869,0.11383268,82727.0,82726.0,1.6216348]
[1743343110063,0.11783268,82727.0,82726.0,1.6216348]
[1743343110983,0.10841853,82727.0,82726.0,1.6216348]
[1743343111468,0.01,82727.0,82726.0,1.6216348]
[1743343114069,0.01,82727.0,82726.0,0.1216348]
[1743343114270,0.01064,82727.0,82726.0,0.1216348]
[1743343114871,0.1315533,82727.0,82726.0,0.1216348]
[1743343115061,0.14335357,82727.0,82726.0,0.1216348]
[1743343115265,0.02244027,82727.0,82726.0,0.1216348]
[1743343115667,0.51674027,82727.0,82726.0,0.1216348]
[1743343116469,0.63765357,82727.0,82726.0,0.1216348]
[1743343116661,0.63768961,82727.0,82726.0,0.1216348]
[1743343117267,0.51677631,82727.0,82726.0,0.1216348]
[1743343118473,0.63768961,82727.0,82726.0,0.00072]
[1743343118663,0.1209294,82717.0,82716.0,0.1209265]
[1743343118863,0.64236706,82717.0,82716.0,0.1216465]
[1743343119076,1.33866706,82717.0,82716.0,0.1216465]
[1743343119476,1.33866706,82717.0,82716.0,0.00072]
[1743343119677,0.1209294,82716.0,82715.0,0.00048359]
[1743343119871,0.1209294,82716.0,82715.0,0.00116359]
[1743343120177,0.5871094,82716.0,82715.0,0.00116359]
[1743343120379,0.60716349,82716.0,82715.0,0.00116359]
[1743343120676,0.60716349,82716.0,82715.0,0.12209449]
[1743343121377,0.60916349,82716.0,82715.0,0.12209449]
[1743343121771,0.02273409,82716.0,82715.0,0.36549449]
[1743343121974,0.02273409,82716.0,82715.0,0.59579449]
[1743343122176,0.02473409,82716.0,82715.0,0.83469449]
[1743343122378,0.14566349,82716.0,82715.0,0.83469449]
[1743343122777,0.14566349,82716.0,82715.0,2.33469449]
[1743343122971,0.62416349,82716.0,82715.0,2.33469449]
[1743343123773,0.14566349,82716.0,82715.0,2.33469449]
[1743343123975,0.01412075,82716.0,82715.0,2.33469449]
[1743343124477,0.01480075,82716.0,82715.0,2.33469449]
[1743343124779,0.004,82716.0,82715.0,2.33469449]
[1743343128790,0.004,82716.0,82715.0,2.48469449]
[1743343130684,0.004,82716.0,82715.0,2.74469449]
[1743343132475,0.148,82737.0,82736.0,0.1209002]
[1743343132679,0.00018122,82740.0,82739.0,0.1208958]
[1743343132882,0.00086122,82740.0,82739.0,0.1215758]
[1743343133280,0.00018122,82740.0,82739.0,0.6070758]
[1743343134086,0.00586122,82740.0,82739.0,0.6070758]
[1743343134482,0.00586122,82740.0,82739.0,2.1070758]
[1743343134696,0.00518122,82740.0,82739.0,2.1070758]
[1743343135586,0.01018122,82740.0,82739.0,2.1070758]
[1743343135987,0.01018122,82740.0,82739.0,1.8570758]
[1743343136187,0.01094122,82740.0,82739.0,0.1215758]
[1743343136790,0.01018122,82740.0,82739.0,0.1215758]
[1743343137095,0.01987187,82740.0,82739.0,0.1215758]
[1743343137996,0.01018122,82740.0,82739.0,0.1215758]
[1743343138200,0.01086122,82740.0,82739.0,0.1215758]
[1743343138997,0.13175552,82740.0,82739.0,0.1215758]
[1743343139193,0.14115781,82740.0,82739.0,0.1215758]
[1743343140000,0.15087701,82740.0,82739.0,0.1215758]
[1743343141098,0.14147472,82740.0,82739.0,0.3519758]
[1743343141900,0.13175552,82740.0,82739.0,0.3519758]
[1743343142099,0.13107552,82740.0,82739.0,0.3519758]
[1743343142403,0.13175552,82740.0,82739.0,0.1215758]
[1743343144190,0.50413149,82740.0,82739.0,0.00068]
[1743343144592,0.1209075,82731.0,82730.0,0.1209085]
[1743343144797,0.2693875,82731.0,82730.0,0.1215885]
[1743343145395,0.7334875,82731.0,82730.0,0.1215885]
[1743343145797,0.7384875,82731.0,82730.0,0.1215885]
[1743343146199,1.1042875,82731.0,82730.0,0.00068]
[1743343146698,0.1209089,82730.0,82729.0,0.2418196]
[1743343146904,0.3716889,82730.0,82729.0,0.1215896]
[1743343147100,0.8357889,82730.0,82729.0,0.1215896]
[1743343147899,0.00568,82730.0,82729.0,0.4823896]
[1743343148106,0.005,82730.0,82729.0,0.4823896]
[1743343148402,0.005,82730.0,82729.0,0.7206896]
[1743343148600,0.005,82730.0,82729.0,2.4522896]
[1743343149807,0.01,82730.0,82729.0,2.4522896]
[1743343151502,0.02040972,82730.0,82729.0,2.4522896]
[1743343151706,0.01972972,82730.0,82729.0,2.4522896]
[1743343151906,0.02048972,82730.0,82729.0,2.4522896]
[1743343152109,0.02990151,82730.0,82729.0,2.4522896]
[1743343152500,0.27360151,82730.0,82729.0,2.4522896]
[1743343153807,0.27360151,82730.0,82729.0,2.0914896]
[1743343154003,0.27360151,82730.0,82729.0,2.4522896]
[1743343154610,0.27360151,82730.0,82729.0,2.2139896]
[1743343154806,0.54215041,82730.0,82729.0,1.86148]
[1743343155004,0.78075041,82730.0,82729.0,0.36148]
[1743343155406,0.79247064,82730.0,82729.0,0.4823904]
[1743343157611,0.79261113,82730.0,82729.0,0.1215904]
[1743343157811,0.79261113,82730.0,82729.0,0.00068]
[1743343158299,0.1209177,82724.0,82723.0,0.4102858]
[1743343158507,0.51975887,82724.0,82723.0,0.4109658]
[1743343158700,0.52948859,82724.0,82723.0,0.2900466]
[1743343159108,0.99878859,82724.0,82723.0,0.00068]
[1743343159306,0.1209265,82718.0,82717.0,0.5312198]
[1743343159512,0.3076531,82718.0,82717.0,0.4109731]
[1743343159711,0.3076531,82718.0,82717.0,0.2900466]
[1743343160012,0.33384774,82718.0,82717.0,0.2900466]
[1743343160307,0.80954774,82718.0,82717.0,0.2900466]
[1743343160813,0.81454774,82718.0,82717.0,0.2900466]
[1743343161710,1.17534774,82718.0,82717.0,0.2900466]
[1743343162212,1.17534774,82718.0,82717.0,0.2893666]
[1743343162608,0.1209294,82716.0,82715.0,0.00048359]
[1743343162812,0.160016,82716.0,82715.0,0.00048359]
[1743343163714,0.16012726,82716.0,82715.0,0.00048359]
[1743343163918,0.1893219,82716.0,82715.0,0.00048359]
[1743343164915,0.1913219,82716.0,82715.0,0.00048359]
[1743343165105,0.3388819,82716.0,82715.0,0.00048359]
[1743343165311,0.3388819,82716.0,82715.0,0.47128359]
[1743343165508,0.32688075,82716.0,82715.0,0.47128359]
[1743343165708,0.3222979,82716.0,82715.0,1.97128359]
[1743343165908,0.31041583,82716.0,82715.0,1.97196359]
[1743343166214,0.29407324,82716.0,82715.0,2.09289449]
[1743343167315,0.29407324,82716.0,82715.0,2.09129449]
[1743343167517,0.14651324,82716.0,82715.0,2.09129449]
[1743343167713,0.29403324,82716.0,82715.0,2.09129449]
[1743343168219,0.29403324,82716.0,82715.0,1.97036359]
[1743343168408,0.29403324,82716.0,82715.0,2.09129449]
[1743343169117,0.29403324,82716.0,82715.0,0.47036359]
[1743343169314,0.29403324,82716.0,82715.0,0.59129449]
[1743343169716,0.77363324,82716.0,82715.0,0.59129449]
[1743343170218,0.53373324,82716.0,82715.0,0.59129449]
[1743343171511,0.53373324,82716.0,82715.0,0.47036359]
[1743343172819,0.53373324,82716.0,82715.0,0.24116359]
[1743343173015,0.77033324,82716.0,82715.0,0.24116359]
[1743343173409,0.79138281,82716.0,82715.0,0.00068]
[1743343173610,0.1209352,82712.0,82711.0,0.233]
[1743343173821,0.13182932,82712.0,82711.0,0.3546167]
[1743343174417,0.60302932,82712.0,82711.0,0.3546167]
[1743343174724,0.61275904,82712.0,82711.0,0.00068]
[1743343175020,0.1209411,82708.0,82707.0,0.231]
[1743343175217,0.13183522,82708.0,82707.0,0.23176]
[1743343175622,0.14156494,82708.0,82707.0,0.23176]
[1743343175808,0.61076494,82708.0,82707.0,0.23176]
[1743343176011,0.61076494,82708.0,82707.0,0.5936026]
[1743343176319,0.16806384,82708.0,82707.0,0.5936026]
[1743343176613,0.16738384,82708.0,82707.0,0.5936026]
[1743343176819,0.17038384,82708.0,82707.0,2.0936026]
[1743343177114,0.29132494,82708.0,82707.0,2.0936026]
[1743343177505,0.29048792,82708.0,82707.0,2.0936026]
[1743343178112,0.29248792,82708.0,82707.0,2.0936026]
[1743343178423,0.16216972,82708.0,82707.0,2.0936026]
[1743343179020,0.15244,82708.0,82707.0,2.0936026]
[1743343179311,0.2733811,82708.0,82707.0,2.0936026]
[1743343179519,0.005,82708.0,82707.0,2.0936026]
[1743343179714,0.1524,82708.0,82707.0,2.0936026]
[1743343180719,0.1494,82708.0,82707.0,2.0936026]